fUST/lending_fUST_20240322
["ID","MTS","AMOUNT","RATE_DAILY","PERIOD"]
[320048143,1711115447986,-500.0,0.00027945,2]
[320048146,1711115447996,-500.0,0.00027945,2]
[320048148,1711115448005,-166.34391731,0.00027945,2]
[320048149,1711115448014,-501.22912965,0.00027945,2]
[320048151,1711115448023,-3328.74,0.00027945,2]
[320048153,1711115448034,-500.0,0.00027945,2]
[320048155,1711115448043,-504.54346755,0.00027945,2]
[320048158,1711115448054,-500.0,0.00027945,2]
[320048159,1711115448063,-500.0,0.00027945,2]
[320048161,1711115448072,-500.0,0.00027945,2]
[320048163,1711115448081,-500.0,0.00027945,2]
[320048165,1711115448091,-872.36,0.00027945,2]
[320048167,1711115448100,-567.31,0.00027945,2]
[320048169,1711115448109,-523.07,0.00027945,2]
[320048171,1711115448118,-501.72279813,0.00027945,2]
[320048173,1711115448127,-500.0,0.00027945,2]
[320048175,1711115448136,-500.0,0.00027945,2]
[320048177,1711115448145,-501.90478215,0.00027945,2]
[320048179,1711115448155,-502.14253907,0.00027945,2]
[320048181,1711115448164,-662.01,0.00027945,2]
[320048182,1711115448174,-224.7373622,0.00027945,2]
[320048184,1711115448182,-500.0,0.00027945,2]
[320048186,1711115448191,-606.25564696,0.00027945,2]
[320048188,1711115448201,-2025.62,0.00027945,2]
[320048190,1711115448211,-500.0,0.00027945,2]
[320048192,1711115448220,-500.0,0.00027945,2]
[320048194,1711115448229,-501.54142219,0.00027945,2]
[320048196,1711115448238,-500.0,0.00027945,2]
[320048198,1711115448247,-320.95695272,0.00027945,2]
[320048200,1711115448256,-599.18782755,0.00027945,2]
[320048202,1711115448265,-502.09908919,0.00027945,2]
[320048204,1711115448274,-501.30230205,0.00027945,2]
[320048206,1711115448285,-158.36715322,0.00027945,2]
[320048208,1711115448294,-501.58335445,0.00027945,2]
[320048209,1711115448303,-352.49416645,0.00027945,2]
[320048211,1711115448312,-500.0,0.00027945,2]
[320048213,1711115448321,-500.0,0.00027945,2]
[320048215,1711115448330,-500.0,0.00027945,2]
[320048217,1711115448338,-500.0,0.00027945,2]
[320048219,1711115448347,-500.0,0.00027945,2]
[320048221,1711115448356,-500.0,0.00027945,2]
[320048223,1711115448365,-500.0,0.00027945,2]
[320048225,1711115448374,-9316.4,0.00027945,2]
[320048227,1711115448383,-500.0,0.00027945,2]
[320048229,1711115448392,-2931.18,0.00027945,2]
[320048243,1711115448508,-500.0,0.00027945,2]
[320048245,1711115448518,-500.0,0.00027945,2]
[320048247,1711115448528,-500.0,0.00027945,2]
[320048249,1711115448537,-891.94,0.00027945,2]
[320048250,1711115448547,-443.86633735,0.00027945,2]
[320048252,1711115448556,-709.56,0.00027945,2]
[320048254,1711115448565,-500.0,0.00027945,2]
[320048256,1711115448575,-572.61,0.00027945,2]
[320048258,1711115448585,-22444.09,0.00027945,2]
[320048260,1711115448596,-500.0,0.00027945,2]
[320048262,1711115448606,-500.0,0.00027945,2]
[320048264,1711115448615,-505.53,0.00027945,2]
[320048266,1711115448624,-500.0,0.00027945,2]
[320048268,1711115448633,-1000.0,0.00027945,2]
[320048270,1711115448642,-500.0,0.00027945,2]
[320048272,1711115448652,-2628.51,0.00027945,2]
[320048274,1711115448661,-2148.91,0.00027945,2]
[320048276,1711115448671,-500.0,0.00027945,2]
[320048278,1711115448681,-599.04,0.00027945,2]
[320048280,1711115448691,-2181.35,0.00027945,2]
[320048282,1711115448699,-1053.89,0.00027945,2]
[320048283,1711115448708,-2225.28,0.00027945,2]
[320048285,1711115448718,-500.0,0.00027945,2]
[320048287,1711115448727,-346.191971,0.00027945,2]
[320048289,1711115448736,-500.0,0.00027945,2]
[320048291,1711115448746,-500.0,0.00027945,2]
[320048293,1711115448755,-2785.42,0.00027945,2]
[320048295,1711115448764,-500.0,0.00027945,2]
[320048297,1711115448773,-4008.14,0.00027945,2]
[320048299,1711115448785,-500.0,0.00027945,2]
[320048301,1711115448794,-500.0,0.00027945,2]
[320048303,1711115448802,-574.95937404,0.00027945,2]
[320048305,1711115448811,-512.81,0.00027945,2]
[320048307,1711115448820,-3127.98,0.00027945,2]
[320048309,1711115448831,-500.0,0.00027945,2]
[320048311,1711115448840,-561.94,0.00027945,2]
[320048313,1711115448848,-534.93257802,0.00027945,2]
[320048315,1711115448858,-547.24,0.00027945,2]
[320048317,1711115448866,-1586.83,0.00027945,2]
[320048319,1711115448875,-500.0,0.00027945,2]
[320048320,1711115448883,-905.49,0.00027945,2]
[320048322,1711115448894,-588.65,0.00027945,2]
[320048324,1711115448903,-500.0,0.00027945,2]
[320048326,1711115448912,-604.36,0.00027945,2]
[320048328,1711115448921,-500.0,0.00027945,2]
[320048330,1711115448930,-500.0,0.00027945,2]
[320048332,1711115448939,-5969.81,0.00027945,2]
[320048334,1711115448948,-1166.06,0.00027945,2]
[320048336,1711115448958,-500.0,0.00027945,2]
[320048338,1711115448966,-500.0,0.00027945,2]
[320048340,1711115448976,-2279.41,0.00027945,2]
[320048342,1711115448989,-500.0,0.00027945,2]
[320048344,1711115449002,-1051.13,0.00027945,2]
[320048346,1711115449013,-31274.5,0.00027945,2]
[320048348,1711115449024,-500.0,0.00027945,2]
[320048350,1711115449038,-30529.47,0.00027945,2]
[320048352,1711115449049,-500.0,0.00027945,2]
[320048354,1711115449060,-619.42858792,0.00027945,2]
[320048355,1711115449069,-500.0,0.00027945,2]
[320048357,1711115449079,-5703.1,0.00027945,2]
[320048359,1711115449088,-500.0,0.00027945,2]
[320048361,1711115449098,-500.0,0.00027945,2]
[320048363,1711115449108,-500.0,0.00027945,2]
[320048365,1711115449118,-500.0,0.00027945,2]
[320048367,1711115449127,-500.0,0.00027945,2]
[320048369,1711115449136,-6699.23,0.00027945,2]
[320048371,1711115449146,-500.0,0.00027945,2]
[320048373,1711115449156,-500.0,0.00027945,2]
[320048375,1711115449165,-591.2,0.00027945,2]
[320048377,1711115449174,-500.0,0.00027945,2]
[320048379,1711115449185,-2922.32,0.00027945,2]
[320048381,1711115449195,-500.0,0.00027945,2]
[320048383,1711115449205,-500.0,0.00027945,2]
[320048384,1711115449215,-500.0,0.00027945,2]
[320048386,1711115449225,-500.0,0.00027945,2]
[320048388,1711115449234,-500.0,0.00027945,2]
[320048390,1711115449244,-500.0,0.00027945,2]
[320048392,1711115449254,-500.0,0.00027945,2]
[320048394,1711115449264,-500.0,0.00027945,2]
[320048396,1711115449273,-502.34938608,0.00027945,2]
[320048397,1711115449285,-2119.44,0.00027945,2]
[320048398,1711115449295,-500.0,0.00027945,2]
[320048399,1711115449304,-500.0,0.00027945,2]
[320048400,1711115449315,-668.63,0.00027945,2]
[320048401,1711115449325,-2385.98,0.00027945,2]
[320048402,1711115449335,-500.0,0.00027945,2]
[320048403,1711115449345,-500.0,0.00027945,2]
[320048404,1711115449355,-1835.6,0.00027945,2]
[320048405,1711115449364,-500.0,0.00027945,2]
[320048406,1711115449373,-486.59437873,0.00027945,2]
[320048407,1711115449382,-500.0,0.00027945,2]
[320048408,1711115449391,-500.0,0.00027945,2]
[320048409,1711115449401,-500.0,0.00027945,2]
[320048410,1711115449410,-522.82320032,0.00027945,2]
[320048411,1711115449420,-500.0,0.00027945,2]
[320048412,1711115449429,-794.49,0.00027945,2]
[320048413,1711115449439,-1781.83,0.00027945,2]
[320048414,1711115449448,-5258.14,0.00027945,2]
[320048415,1711115449457,-210.83739809,0.00027945,2]
[320048416,1711115449466,-500.0,0.00027945,2]
[320048417,1711115449476,-500.0,0.00027945,2]
[320048418,1711115449489,-665.32,0.00027945,2]
[320048419,1711115449504,-2610.58061483,0.00027986,2]
[320048420,1711115449519,-166.666666,0.00028038,2]
[320048421,1711115449534,-306.2103796,0.00028114,2]
[320048422,1711115449548,-153.0,0.00028154,2]
[320048423,1711115449562,-500.0,0.00028493,2]
[320048424,1711115449576,-500.0,0.00028493,2]
[320048425,1711115449594,-500.0,0.00028493,2]
[320048426,1711115449607,-500.0,0.00028493,2]
[320048427,1711115449621,-500.0,0.00028493,2]
[320048428,1711115449631,-955.22,0.00028493,2]
[320048429,1711115449643,-500.0,0.00028493,2]
[320048430,1711115449655,-500.0,0.00028493,2]
[320048431,1711115449669,-500.0,0.00028493,2]
[320048432,1711115449682,-500.0,0.00028493,2]
[320048433,1711115449695,-676.25,0.00028493,2]
[320048434,1711115449708,-500.0,0.00028493,2]
[320048435,1711115449719,-500.0,0.00028493,2]
[320048436,1711115449729,-500.0,0.00028493,2]
[320048437,1711115449744,-616.97,0.00028493,2]
[320048438,1711115449756,-808.45,0.00028493,2]
[320048439,1711115449770,-500.0,0.00028493,2]
[320048440,1711115449785,-500.0,0.00028493,2]
[320048441,1711115449797,-500.0,0.00028493,2]
[320048442,1711115449810,-500.0,0.00028493,2]
[320048443,1711115449822,-630.85833321,0.00028493,2]
[320048444,1711115449836,-151.0,0.00028493,2]
[320048445,1711115449850,-500.0,0.00028493,2]
[320048446,1711115449865,-259.15378988,0.00028493,30]
[320048447,1711115449878,-616.53,0.00028493,2]
[320048448,1711115449890,-500.0,0.00028493,2]
[320048449,1711115449900,-500.0,0.00028493,2]
[320048450,1711115449912,-2114.34,0.00028493,2]
[320048451,1711115449926,-500.0,0.00028493,2]
[320048452,1711115449938,-579.77,0.00028493,2]
[320048453,1711115449951,-500.0,0.00028493,2]
[320048455,1711115449963,-500.0,0.00028493,2]
[320048456,1711115449974,-500.0,0.00028493,2]
[320048457,1711115449985,-500.0,0.00028493,2]
[320048458,1711115449997,-500.0,0.00028493,2]
[320048459,1711115450010,-500.0,0.00028493,2]
[320048460,1711115450023,-483.96581288,0.00028493,2]
[320048461,1711115450039,-500.0,0.00028493,2]
[320048462,1711115450051,-500.0,0.00028493,2]
[320048463,1711115450064,-854.2,0.00028493,2]
[320048465,1711115450076,-403.39055599,0.00028493,2]
[320048467,1711115450088,-1432.33,0.00028493,2]
[320048469,1711115450100,-1109.84,0.00028493,2]
[320048472,1711115450112,-2496.11,0.00028493,2]
[320048474,1711115450124,-705.27,0.00028493,2]
[320048476,1711115450136,-811.02,0.00028493,2]
[320048479,1711115450148,-1450.07,0.00028493,2]
[320048481,1711115450160,-500.0,0.00028493,2]
[320048483,1711115450172,-452.52073159,0.00028493,2]
[320048485,1711115450184,-500.0,0.00028493,2]
[320048487,1711115450196,-525.82,0.00028493,2]
[320048490,1711115450209,-594.77,0.00028493,2]
[320048492,1711115450221,-500.0,0.00028493,2]
[320048494,1711115450233,-2110.5,0.00028493,2]
[320048496,1711115450244,-653.88,0.00028493,2]
[320048499,1711115450256,-500.0,0.00028493,2]
[320048501,1711115450267,-500.0,0.00028493,2]
[320048503,1711115450280,-500.0,0.00028493,2]
[320048505,1711115450291,-2170.67,0.00028493,2]
[320048507,1711115450303,-500.0,0.00028493,2]
[320048510,1711115450315,-500.0,0.00028493,2]
[320048512,1711115450326,-500.0,0.00028493,2]
[320048514,1711115450337,-500.0,0.00028493,2]
[320048516,1711115450349,-500.0,0.00028493,2]
[320048517,1711115450359,-500.0,0.00028493,2]
[320048518,1711115450371,-500.0,0.00028493,2]
[320048519,1711115450382,-500.0,0.00028493,2]
[320048520,1711115450392,-500.0,0.00028493,2]
[320048521,1711115450403,-3328.74,0.00028493,2]
[320048522,1711115450415,-500.0,0.00028493,2]
[320048523,1711115450425,-500.0,0.00028493,2]
[320048524,1711115450436,-500.0,0.00028493,2]
[320048525,1711115450447,-500.0,0.00028493,2]
[320048526,1711115450459,-872.36,0.00028493,2]
[320048527,1711115450470,-567.31,0.00028493,2]
[320048528,1711115450482,-523.07,0.00028493,2]
[320048529,1711115450495,-500.0,0.00028493,2]
[320048530,1711115450508,-500.0,0.00028493,2]
[320048531,1711115450520,-662.01,0.00028493,2]
[320048532,1711115450535,-500.0,0.00028493,2]
[320048533,1711115450550,-2025.62,0.00028493,2]
[320048534,1711115450561,-500.0,0.00028493,2]
[320048535,1711115450573,-500.0,0.00028493,2]
[320048536,1711115450586,-500.0,0.00028493,2]
[320048537,1711115450599,-500.0,0.00028493,2]
[320048538,1711115450611,-500.0,0.00028493,2]
[320048539,1711115450622,-500.0,0.00028493,2]
[320048540,1711115450635,-500.0,0.00028493,2]
[320048541,1711115450646,-500.0,0.00028493,2]
[320048542,1711115450657,-9316.4,0.00028493,2]
[320048543,1711115450669,-500.0,0.00028493,2]
[320048544,1711115450681,-2931.18,0.00028493,2]
[320048545,1711115450694,-500.0,0.00028493,2]
[320048547,1711115450704,-500.0,0.00028493,2]
[320048563,1711115450853,-500.0,0.00028493,2]
[320048566,1711115450874,-891.94,0.00028493,2]
[320048568,1711115450883,-709.56,0.00028493,2]
[320048570,1711115450893,-572.61,0.00028493,2]
[320048572,1711115450903,-22444.09,0.00028493,2]
[320048574,1711115450912,-500.0,0.00028493,2]
[320048575,1711115450921,-505.53,0.00028493,2]
[320048577,1711115450939,-1000.0,0.00028493,2]
[320048578,1711115450948,-2628.51,0.00028493,2]
[320048579,1711115450958,-2148.91,0.00028493,2]
[320048580,1711115450967,-500.0,0.00028493,2]
[320048581,1711115450976,-599.04,0.00028493,2]
[320048582,1711115450986,-2181.35,0.00028493,2]
[320048584,1711115450995,-1053.89,0.00028493,2]
[320048585,1711115451004,-2225.28,0.00028493,2]
[320048587,1711115451014,-500.0,0.00028493,2]
[320048589,1711115451023,-500.0,0.00028493,2]
[320048591,1711115451035,-2785.42,0.00028493,2]
[320048593,1711115451045,-4008.14,0.00028493,2]
[320048595,1711115451054,-500.0,0.00028493,2]
[320048597,1711115451064,-3127.98,0.00028493,2]
[320048599,1711115451074,-500.0,0.00028493,2]
[320048601,1711115451083,-561.94,0.00028493,2]
[320048603,1711115451093,-547.24,0.00028493,2]
[320048605,1711115451103,-1586.83,0.00028493,2]
[320048607,1711115451112,-905.49,0.00028493,2]
[320048609,1711115451122,-588.65,0.00028493,2]
[320048611,1711115451131,-500.0,0.00028493,2]
[320048613,1711115451140,-604.36,0.00028493,2]
[320048615,1711115451150,-500.0,0.00028493,2]
[320048617,1711115451160,-5969.81,0.00028493,2]
[320048618,1711115451170,-1166.06,0.00028493,2]
[320048620,1711115451179,-500.0,0.00028493,2]
[320048622,1711115451190,-516.89654527,0.00028493,2]
[320048624,1711115451200,-2279.41,0.00028493,2]
[320048626,1711115451210,-500.0,0.00028493,2]
[320048628,1711115451220,-1051.13,0.00028493,2]
[320048630,1711115451230,-31274.5,0.00028493,2]
[320048632,1711115451241,-30529.47,0.00028493,2]
[320048633,1711115451250,-500.0,0.00028493,2]
[320048635,1711115451261,-5703.1,0.00028493,2]
[320048638,1711115451271,-500.0,0.00028493,2]
[320048639,1711115451284,-500.0,0.00028493,2]
[320048641,1711115451294,-500.0,0.00028493,2]
[320048644,1711115451304,-500.0,0.00028493,2]
[320048646,1711115451314,-6699.23,0.00028493,2]
[320048647,1711115451324,-494.92872544,0.00028493,2]
[320048649,1711115451334,-591.2,0.00028493,2]
[320048651,1711115451344,-500.0,0.00028493,2]
[320048653,1711115451354,-2922.32,0.00028493,2]
[320048655,1711115451364,-500.0,0.00028493,2]
[320048658,1711115451374,-500.0,0.00028493,2]
[320048660,1711115451384,-500.0,0.00028493,2]
[320048661,1711115451394,-558.62127513,0.00028493,2]
[320048663,1711115451404,-500.0,0.00028493,2]
[320048665,1711115451414,-500.0,0.00028493,2]
[320048667,1711115451426,-2119.44,0.00028493,2]
[320048669,1711115451435,-500.0,0.00028493,2]
[320048671,1711115451446,-668.63,0.00028493,2]
[320048673,1711115451456,-2385.98,0.00028493,2]
[320048675,1711115451466,-500.0,0.00028493,2]
[320048677,1711115451475,-500.0,0.00028493,2]
[320048679,1711115451485,-1835.6,0.00028493,2]
[320048681,1711115451494,-500.0,0.00028493,2]
[320048683,1711115451505,-500.0,0.00028493,2]
[320048685,1711115451515,-500.0,0.00028493,2]
[320048687,1711115451524,-500.0,0.00028493,2]
[320048689,1711115451539,-794.49,0.00028493,2]
[320048691,1711115451553,-1781.83,0.00028493,2]
[320048693,1711115451562,-5258.14,0.00028493,2]
[320048695,1711115451572,-500.0,0.00028493,2]
[320048697,1711115451582,-500.0,0.00028493,2]
[320048699,1711115451593,-665.32,0.00028493,2]
[320048701,1711115451604,-166.666666,0.00028679,2]
[320048703,1711115451613,-153.0,0.00028683,2]
[320048705,1711115451623,-527.76401956,0.00028767,2]
[320048707,1711115451632,-106773.87377836,0.0002877,2]
[320048709,1711115451642,-201.8047941,0.00028923,2]
[320048711,1711115451651,-153.0,0.00028936,2]
[320048713,1711115451661,-403.6532723,0.00028936,2]
[320048715,1711115451671,-153.0,0.00028936,2]
[320048717,1711115451680,-153.0,0.00028936,2]
[320048719,1711115451690,-153.0,0.00028936,2]
[320048721,1711115451700,-153.0,0.00028936,2]
[320048723,1711115451709,-306.0,0.00028976,2]
[320048725,1711115451718,-500.0,0.00029041,2]
[320048727,1711115451728,-500.0,0.00029041,2]
[320048729,1711115451738,-500.0,0.00029041,2]
[320048731,1711115451747,-500.0,0.00029041,2]
[320048733,1711115451757,-500.0,0.00029041,2]
[320048735,1711115451767,-955.22,0.00029041,2]
[320048737,1711115451776,-500.0,0.00029041,2]
[320048738,1711115451790,-500.0,0.00029041,2]
[320048740,1711115451800,-676.25,0.00029041,2]
[320048742,1711115451810,-500.0,0.00029041,2]
[320048744,1711115451819,-500.0,0.00029041,2]
[320048746,1711115451829,-500.0,0.00029041,2]
[320048748,1711115451838,-616.97,0.00029041,2]
[320048750,1711115451847,-808.45,0.00029041,2]
[320048752,1711115451857,-500.0,0.00029041,2]
[320048754,1711115451866,-500.0,0.00029041,2]
[320048756,1711115451876,-500.0,0.00029041,2]
[320048758,1711115451885,-500.0,0.00029041,2]
[320048760,1711115451894,-616.53,0.00029041,2]
[320048762,1711115451904,-500.0,0.00029041,2]
[320048764,1711115451913,-500.0,0.00029041,2]
[320048766,1711115451922,-2114.34,0.00029041,2]
[320048768,1711115451932,-500.0,0.00029041,2]
[320048769,1711115451942,-579.77,0.00029041,2]
[320048772,1711115451952,-500.0,0.00029041,2]
[320048773,1711115451961,-500.0,0.00029041,2]
[320048776,1711115451971,-500.0,0.00029041,2]
[320048778,1711115451981,-500.0,0.00029041,2]
[320048780,1711115451990,-500.0,0.00029041,2]
[320048781,1711115452001,-500.0,0.00029041,2]
[320048783,1711115452011,-500.0,0.00029041,2]
[320048785,1711115452021,-854.2,0.00029041,2]
[320048787,1711115452035,-1432.33,0.00029041,2]
[320048789,1711115452045,-1109.84,0.00029041,2]
[320048791,1711115452055,-2496.11,0.00029041,2]
[320048794,1711115452065,-705.27,0.00029041,2]
[320048795,1711115452075,-811.02,0.00029041,2]
[320048798,1711115452085,-1450.07,0.00029041,2]
[320048800,1711115452095,-500.0,0.00029041,2]
[320048802,1711115452105,-500.0,0.00029041,2]
[320048804,1711115452115,-525.82,0.00029041,2]
[320048806,1711115452125,-594.77,0.00029041,2]
[320048807,1711115452136,-500.0,0.00029041,2]
[320048810,1711115452147,-2110.5,0.00029041,2]
[320048812,1711115452157,-653.88,0.00029041,2]
[320048814,1711115452167,-500.0,0.00029041,2]
[320048816,1711115452176,-500.0,0.00029041,2]
[320048818,1711115452186,-500.0,0.00029041,2]
[320048820,1711115452196,-2170.67,0.00029041,2]
[320048822,1711115452205,-500.0,0.00029041,2]
[320048823,1711115452214,-500.0,0.00029041,2]
[320048825,1711115452223,-500.0,0.00029041,2]
[320048827,1711115452232,-500.0,0.00029041,2]
[320048829,1711115452241,-500.0,0.00029041,2]
[320048831,1711115452250,-500.0,0.00029041,2]
[320048833,1711115452260,-500.0,0.00029041,2]
[320048835,1711115452268,-500.0,0.00029041,2]
[320048837,1711115452280,-500.0,0.00029041,2]
[320048839,1711115452290,-3328.74,0.00029041,2]
[320048841,1711115452299,-500.0,0.00029041,2]
[320048843,1711115452308,-500.0,0.00029041,2]
[320048845,1711115452317,-500.0,0.00029041,2]
[320048847,1711115452326,-500.0,0.00029041,2]
[320048849,1711115452335,-872.36,0.00029041,2]
[320048851,1711115452344,-567.31,0.00029041,2]
[320048853,1711115452353,-523.07,0.00029041,2]
[320048854,1711115452363,-500.0,0.00029041,2]
[320048856,1711115452372,-500.0,0.00029041,2]
[320048858,1711115452381,-662.01,0.00029041,2]
[320048861,1711115452391,-500.0,0.00029041,2]
[320048863,1711115452400,-2025.62,0.00029041,2]
[320048865,1711115452409,-500.0,0.00029041,2]
[320048866,1711115452418,-500.0,0.00029041,2]
[320048868,1711115452428,-162.17961263,0.00029041,2]
[320048870,1711115452437,-500.0,0.00029041,2]
[320048872,1711115452447,-500.0,0.00029041,2]
[320048874,1711115452456,-500.0,0.00029041,2]
[320048876,1711115452465,-500.0,0.00029041,2]
[320048878,1711115452474,-9316.4,0.00029041,2]
[320048880,1711115452483,-500.0,0.00029041,2]
[320048882,1711115452492,-500.0,0.00029041,2]
[320048883,1711115452501,-2931.18,0.00029041,2]
[320048884,1711115452510,-500.0,0.00029041,2]
[320048886,1711115452518,-500.0,0.00029041,2]
[320048888,1711115452530,-500.0,0.00029041,2]
[320048890,1711115452539,-891.94,0.00029041,2]
[320048892,1711115452550,-709.56,0.00029041,2]
[320048894,1711115452559,-572.61,0.00029041,2]
[320048896,1711115452568,-22444.09,0.00029041,2]
[320048898,1711115452577,-500.0,0.00029041,2]
[320048900,1711115452590,-505.53,0.00029041,2]
[320048902,1711115452600,-1000.0,0.00029041,2]
[320048904,1711115452609,-2628.51,0.00029041,2]
[320048906,1711115452618,-2148.91,0.00029041,2]
[320048908,1711115452628,-500.0,0.00029041,2]
[320048910,1711115452637,-599.04,0.00029041,2]
[320048912,1711115452646,-2181.35,0.00029041,2]
[320048914,1711115452655,-1053.89,0.00029041,2]
[320048916,1711115452664,-2225.28,0.00029041,2]
[320048919,1711115452675,-294.38686381,0.00029041,2]
[320048920,1711115452684,-2785.42,0.00029041,2]
[320048922,1711115452693,-4008.14,0.00029041,2]
[320048925,1711115452702,-596.77497147,0.00029041,2]
[320048926,1711115452712,-3127.98,0.00029041,2]
[320048929,1711115452721,-500.0,0.00029041,2]
[320048931,1711115452730,-561.94,0.00029041,2]
[320048932,1711115452739,-547.24,0.00029041,2]
[320048935,1711115452752,-1586.83,0.00029041,2]
[320048937,1711115452762,-905.49,0.00029041,2]
[320048939,1711115452771,-500.0,0.00029041,2]
[320048941,1711115452782,-588.65,0.00029041,2]
[320048943,1711115452791,-604.36,0.00029041,2]
[320048945,1711115452800,-500.0,0.00029041,2]
[320048947,1711115452810,-5969.81,0.00029041,2]
[320048949,1711115452819,-1166.06,0.00029041,2]
[320048951,1711115452829,-500.0,0.00029041,2]
[320048953,1711115452838,-2279.41,0.00029041,2]
[320048955,1711115452848,-500.0,0.00029041,2]
[320048957,1711115452858,-1051.13,0.00029041,2]
[320048958,1711115452869,-31274.5,0.00029041,2]
[320048960,1711115452880,-30529.47,0.00029041,2]
[320048963,1711115452890,-503.664255,0.00029041,2]
[320048965,1711115452901,-5703.1,0.00029041,2]
[320048966,1711115452912,-500.0,0.00029041,2]
[320048969,1711115452922,-500.0,0.00029041,2]
[320048971,1711115452944,-500.0,0.00029041,2]
[320048972,1711115452954,-221.66082681,0.00029041,2]
[320048975,1711115452964,-6699.23,0.00029041,2]
[320048976,1711115452974,-591.2,0.00029041,2]
[320048978,1711115452984,-500.0,0.00029041,2]
[320048980,1711115452994,-2922.32,0.00029041,2]
[320048983,1711115453004,-500.0,0.00029041,2]
[320048984,1711115453014,-500.0,0.00029041,2]
[320048986,1711115453023,-500.0,0.00029041,2]
[320048988,1711115453037,-500.0,0.00029041,2]
[320048991,1711115453048,-500.0,0.00029041,2]
[320048993,1711115453058,-2119.44,0.00029041,2]
[320048994,1711115453068,-668.63,0.00029041,2]
[320048996,1711115453078,-2385.98,0.00029041,2]
[320048999,1711115453088,-500.0,0.00029041,2]
[320049000,1711115453098,-500.0,0.00029041,2]
[320049002,1711115453108,-1835.6,0.00029041,2]
[320049004,1711115453118,-500.0,0.00029041,2]
[320049006,1711115453127,-500.0,0.00029041,2]
[320049008,1711115453138,-794.49,0.00029041,2]
[320049010,1711115453148,-1781.83,0.00029041,2]
[320049012,1711115453157,-5258.14,0.00029041,2]
[320049014,1711115453167,-500.0,0.00029041,2]
[320049016,1711115453183,-500.0,0.00029041,2]
[320049019,1711115453242,-665.32,0.00029041,2]
[320049020,1711115453252,-153.0,0.00029041,2]
[320049022,1711115453262,-201.8047941,0.00029056,2]
[320049024,1711115453273,-153.0,0.00029056,2]
[320049026,1711115453288,-153.0,0.00029056,2]
[320049028,1711115453299,-153.0,0.00029056,2]
[320049029,1711115453308,-153.0,0.00029056,2]
[320049030,1711115453318,-153.0,0.00029056,2]
[320049031,1711115453329,-153.0,0.00029056,2]
[320049032,1711115453340,-153.0,0.00029056,2]
[320049033,1711115453350,-153.0,0.00029056,2]
[320049034,1711115453361,-153.0,0.00029056,2]
[320049035,1711115453372,-153.0,0.00029315,2]
[320049036,1711115453382,-153.0,0.00029315,2]
[320049037,1711115453393,-153.0,0.00029315,2]
[320049038,1711115453404,-153.0,0.00029315,2]
[320049039,1711115453416,-184.6090244,0.00029315,2]
[320049040,1711115453426,-166.666666,0.00029321,2]
[320049041,1711115453436,-169.73366787,0.00029589,2]
[320049042,1711115453446,-500.0,0.00029589,2]
[320049043,1711115453456,-500.0,0.00029589,2]